[Event "4NCL 2nd Div 2023-24"]
[Site "Daventry"]
[Date "2024.05.04"]
[Round "9.1"]
[White "Bisby, Daniel L"]
[Black "Jones, Steven A"]
[Result "1-0"]
[ECO "B26"]
[WhiteElo "2277"]
[BlackElo "2202"]
[Annotator "NA"]
[PlyCount "69"]
[EventDate "2023.11.11"]
[EventType "team-tourn"]
[EventCountry "ENG"]
[SourceTitle "playchess.com"]
[Source "ChessBase"]
[SourceQuality "1"]
[TimeControl "40/6000+30:3000+30"]

1. e4 {[%emt 0:00:04]} c5 {[%emt 0:00:43]} 2. Nc3 {[%emt 0:00:50]} Nc6 {[%emt 0:00:24]} 3. g3 {[%emt 0:00:45]} g6 {[%emt 0:00:07]} 4. Bg2 {[%emt 0:00:07]} Bg7 {[%emt 0:00:05]} 5. d3 {[%emt 0:00:33]} d6 {[%emt 0:00:07]} 6. Be3 {[%emt 0:01:31]} Rb8 {[%emt 0:00:07]} 7. Qd2 {[%emt 0:09:46]} b5 {[%emt 0:01:06]} 8. Nge2 {[%emt 0:00:23]} b4 {[%emt 0:05:29]} 9. Nd1 {[%emt 0:00:43]} Nd4 {[%emt 0:01:35]} 10. O-O {[%emt 0:02:02]} e6 {[%emt 0:05:23]} 11. Nc1 {[%emt 0:05:38]} Ne7 {[%emt 0:04:26]} 12. c3 {[%emt 0:00:58]} Ndc6 {[%emt 0:02:10]} 13. Bh6 {[%emt 0:02:31]} bxc3 {[%emt 0:02:38]} 14. bxc3 {[%emt 0:00:54]} O-O {[%emt 0:00:10]} 15. Bxg7 {[%emt 0:02:27]} Kxg7 {[%emt 0:00:09]} 16. Ne3 {[%emt 0:01:07]} e5 {[%emt 0:02:07]} 17. Ne2 {[%emt 0:05:37]} f6 {[%emt 0:02:56]} 18. f4 {[%emt 0:05:43]} Qa5 {[%emt 0:09:13]} 19. Rac1 {[%emt 0:16:47]} Ba6 {[%emt 0:08:23]} 20. Rc2 {[%emt 0:06:58]} Qc7 {[%emt 0:07:28]} 21. Bh3 {[%emt 0:05:12]} Bc8 {[%emt 0:08:24]} 22. Bxc8 {[%emt 0:01:30]} Rbxc8 {[%emt 0:04:54]} 23. f5 {[%emt 0:01:57]} g5 {[%emt 0:01:02]} 24. g4 {[%emt 0:01:00]} Rfd8 {[%emt 0:03:36]} 25. Nd5 {[%emt 0:07:53]} Nxd5 {[%emt 0:01:54]} 26. exd5 {[%emt 0:00:05]} Ne7 {[%emt 0:00:13]} 27. c4 {[%emt 0:00:15]} Rb8 {[%emt 0:02:21]} 28. Ng3 {[%emt 0:02:54]} Rb6 {[%emt 0:08:17]} 29. Ne4 {[%emt 0:03:24]} Rdb8 {[%emt 0:04:41]} 30. h4 {[%emt 0:03:02]} gxh4 {[%emt 0:05:12]} 31. Nxf6 {[%emt 0:03:32]} Kxf6 {[%emt 0:04:26]} 32. Qh6+ {[%emt 0:00:30]} Kf7 {[%emt 0:00:04]} 33. f6 {[%emt 0:04:07]} Rb1 {[%emt 0:01:10]} 34. Rcf2 {[%emt 0:02:28]} Rxf1+ {[%emt 0:02:34]} 35. Rxf1 {[%emt 0:00:11]} 1-0

[Event "4NCL 2nd Div 2023-24"]
[Site "Daventry"]
[Date "2024.05.04"]
[Round "9.2"]
[White "Rees, Ioan"]
[Black "Gallagher, Daniel GH"]
[Result "1/2-1/2"]
[ECO "E60"]
[WhiteElo "2245"]
[BlackElo "2234"]
[Annotator "ChessBase"]
[PlyCount "74"]
[EventDate "2023.11.11"]
[EventType "team-tourn"]
[EventCountry "ENG"]
[SourceTitle "playchess.com"]
[Source "ChessBase"]
[SourceQuality "1"]
[TimeControl "40/6000+30:3000+30"]

1. d4 {[%emt 0:00:03]} Nf6 {[%emt 0:00:05]} 2. c4 {[%emt 0:00:04]} g6 {[%emt 0:00:05]} 3. Nf3 {[%emt 0:00:05]} Bg7 {[%emt 0:00:05]} 4. e3 {[%emt 0:00:03]} O-O {[%emt 0:00:16]} 5. Be2 {[%emt 0:00:02]} c5 {[%emt 0:01:10]} 6. d5 {[%emt 0:00:26]} e6 {[%emt 0:00:14]} 7. Nc3 {[%emt 0:00:05]} exd5 {[%emt 0:00:08]} 8. cxd5 {[%emt 0:00:03]} d6 {[%emt 0:00:13]} 9. Nd2 {[%emt 0:00:05]} Na6 {[%emt 0:02:30]} 10. a4 {[%emt 0:00:53]} Nb4 {[%emt 0:06:23]} 11. e4 {[%emt 0:03:48]} Ng4 {[%emt 0:12:21]} 12. O-O {[%emt 0:14:53]} Ne5 {[%emt 0:18:32]} 13. f4 {[%emt 0:26:04]} Ned3 {[%emt 0:01:49]} 14. Nf3 {[%emt 0:11:48]} Nxc1 {[%emt 0:22:27]} 15. Rxc1 {[%emt 0:00:09]} Bg4 {[%emt 0:00:59]} 16. Ng5 {[%emt 0:12:36]} Bxe2 {[%emt 0:07:35]} 17. Qxe2 {[%emt 0:00:10]} Re8 {[%emt 0:05:43]} 18. Qc4 {[%emt 0:05:54]} h6 {[%emt 0:15:40]} 19. Nf3 {[%emt 0:00:17]} a6 {[%emt 0:03:30]} 20. Rfe1 {[%emt 0:03:55]} Rb8 {[%emt 0:04:04]} 21. e5 {[%emt 0:10:21]} b5 {[%emt 0:00:05]} 22. axb5 {[%emt 0:00:50]} axb5 {[%emt 0:00:01]} 23. Nxb5 {[%emt 0:00:39]} dxe5 {[%emt 0:00:40]} 24. fxe5 {[%emt 0:00:32]} Qxd5 {[%emt 0:01:24]} 25. Qxd5 {[%emt 0:06:45]} Nxd5 {[%emt 0:00:02]} 26. Rxc5 {[%emt 0:00:02]} Nf4 {[%emt 0:00:44]} 27. Nd6 {[%emt 0:03:07]} Re7 {[%emt 0:01:57]} 28. Rc2 {[%emt 0:04:05]} Nd3 {[%emt 0:00:41]} 29. Ree2 {[%emt 0:00:12]} Nxe5 {[%emt 0:01:02]} 30. Nxe5 {[%emt 0:02:29]} Bxe5 {[%emt 0:03:30]} 31. Nc4 {[%emt 0:00:27]} Bd4+ {[%emt 0:00:07]} 32. Kf1 {[%emt 0:00:03]} Reb7 {[%emt 0:00:37]} 33. g3 {[%emt 0:00:24]} h5 {[%emt 0:00:38]} 34. Kg2 {[%emt 0:00:21]} Rb3 {[%emt 0:00:31]} 35. Na5 {[%emt 0:00:53]} Rd3 {[%emt 0:01:17]} 36. Nc6 {[%emt 0:00:23]} Rbb3 {[%emt 0:00:29]} 37. Nxd4 {[%emt 0:01:44]} Rxd4 {[%emt 0:00:02]} 1/2-1/2

[Event "4NCL 2nd Div 2023-24"]
[Site "Daventry"]
[Date "2024.05.04"]
[Round "9.3"]
[White "McClement, Andrew"]
[Black "Southcott-Moyers, Indy"]
[Result "0-1"]
[ECO "A13"]
[WhiteElo "2185"]
[BlackElo "2160"]
[Annotator "NA RC"]
[PlyCount "48"]
[EventDate "2023.11.11"]
[EventType "team-tourn"]
[EventCountry "ENG"]
[SourceTitle "playchess.com"]
[Source "ChessBase"]
[SourceQuality "1"]
[TimeControl "40/6000+30:3000+30"]

1. Nf3 {[%emt 0:00:03]} d5 {[%emt 0:00:24]} 2. c4 {[%emt 0:00:02]} e6 {[%emt 0:00:06]} 3. g3 {[%emt 0:00:17]} Nf6 {[%emt 0:00:38]} 4. Bg2 {[%emt 0:00:34]} dxc4 {[%emt 0:04:32]} 5. Qa4+ {[%emt 0:00:30]} Bd7 {[%emt 0:03:05]} 6. Qxc4 {[%emt 0:00:02]} c5 {[%emt 0:02:18]} 7. Ne5 {[%emt 0:03:07]} Qc8 {[%emt 0:02:28]} 8. d3 {[%emt 0:07:56]} Nc6 {[%emt 0:05:23]} 9. Nxd7 {[%emt 0:03:44]} Qxd7 {[%emt 0:01:55]} 10. Bg5 {[%emt 0:02:07]} Be7 {[%emt 0:12:22]} 11. O-O {[%emt 0:12:17]} Rc8 {[%emt 0:02:44]} 12. Nc3 {[%emt 0:02:07]} b6 {[%emt 0:09:25]} 13. a4 {[%emt 0:06:16]} O-O {[%emt 0:01:00]} 14. Rfd1 {[%emt 0:03:38]} Rfd8 {[%emt 0:02:15]} 15. Bd2 {[%emt 0:11:00]} Nd4 {[%emt 0:10:15]} 16. h3 {[%emt 0:05:28]} Nd5 {[%emt 0:05:58]} 17. Kf1 {[%emt 0:00:51]} Nb4 {[%emt 0:05:48]} 18. Nb5 {[%emt 0:04:58]} Ndc2 {[%emt 0:07:12]} 19. Rac1 {[%emt 0:01:06]} a6 {[%emt 0:03:44]} 20. Rxc2 {[%emt 0:03:12]} axb5 {[%emt 0:00:19]} 21. axb5 {[%emt 0:00:07]} Nxc2 {[%emt 0:00:06]} 22. Bc6 {[%emt 0:00:06]} Rxc6 {[%emt 0:00:12]} 23. bxc6 {[%emt 0:00:29]} Qxc6 {[%emt 0:00:02]} 24. Qxc2 {[%emt 0:00:14]} Qh1# {[%emt 0:00:02]} 0-1

[Event "4NCL 2nd Div 2023-24"]
[Site "Daventry"]
[Date "2024.05.04"]
[Round "9.4"]
[White "Bullen, Alex"]
[Black "Hill, Alistair"]
[Result "1/2-1/2"]
[ECO "D04"]
[WhiteElo "2186"]
[BlackElo "2122"]
[Annotator "NA RC"]
[PlyCount "27"]
[EventDate "2023.11.11"]
[EventType "team-tourn"]
[EventCountry "ENG"]
[SourceTitle "playchess.com"]
[Source "ChessBase"]
[SourceQuality "1"]
[TimeControl "40/6000+30:3000+30"]

1. d4 {[%emt 0:00:03]} Nf6 {[%emt 0:00:08]} 2. Nf3 {[%emt 0:00:11]} g6 {[%emt 0:00:58]} 3. Nbd2 {[%emt 0:00:25]} d5 {[%emt 0:00:25]} 4. b3 {[%emt 0:00:23]} Bg7 {[%emt 0:00:18]} 5. Bb2 {[%emt 0:00:08]} O-O {[%emt 0:00:08]} 6. e3 {[%emt 0:00:08]} c5 {[%emt 0:00:57]} 7. c4 {[%emt 0:01:14]} cxd4 {[%emt 0:00:56]} 8. exd4 {[%emt 0:00:35]} Bf5 {[%emt 0:04:51]} 9. Be2 {[%emt 0:04:32]} Nc6 {[%emt 0:00:52]} 10. Nh4 {[%emt 0:03:21]} Be6 {[%emt 0:03:43]} 11. Nhf3 {[%emt 0:03:20]} Bf5 {[%emt 0:21:15]} 12. Nh4 {[%emt 0:03:05]} Be6 {[%emt 0:04:23]} 13. Nhf3 {[%emt 0:05:59]} Bf5 {[%emt 0:00:43]} 14. Nh4 {[%emt 0:12:27]} 1/2-1/2

[Event "4NCL 2nd Div 2023-24"]
[Site "Daventry"]
[Date "2024.05.04"]
[Round "9.5"]
[White "Sivanandan, Bodhana"]
[Black "Blackburn, Jonathan L B"]
[Result "0-1"]
[ECO "C08"]
[WhiteElo "2065"]
[BlackElo "2203"]
[Annotator "RC"]
[PlyCount "108"]
[EventDate "2023.11.11"]
[EventType "team-tourn"]
[EventCountry "ENG"]
[SourceTitle "playchess.com"]
[Source "ChessBase"]
[SourceQuality "1"]
[TimeControl "40/6000+30:3000+30"]

1. e4 {[%emt 0:01:13]} e6 {[%emt 0:00:06]} 2. d4 {[%emt 0:01:44]} d5 {[%emt 0:00:04]} 3. Nd2 {[%emt 0:00:28]} c5 {[%emt 0:00:06]} 4. exd5 {[%emt 0:00:38]} exd5 {[%emt 0:00:06]} 5. Ngf3 {[%emt 0:01:31]} Nc6 {[%emt 0:00:35]} 6. Be2 {[%emt 0:03:28]} Nf6 {[%emt 0:02:41]} 7. O-O {[%emt 0:01:27]} c4 {[%emt 0:04:15]} 8. Re1 {[%emt 0:09:23]} Be7 {[%emt 0:00:40]} 9. Nf1 {[%emt 0:01:48]} O-O {[%emt 0:09:14]} 10. Ng3 {[%emt 0:06:58]} Re8 {[%emt 0:08:21]} 11. c3 {[%emt 0:06:06]} h6 {[%emt 0:04:35]} 12. Bf4 {[%emt 0:05:43]} Be6 {[%emt 0:05:03]} 13. Bf1 {[%emt 0:05:13]} Bf8 {[%emt 0:06:59]} 14. Qc2 {[%emt 0:13:30]} Rc8 {[%emt 0:05:04]} 15. h3 {[%emt 0:07:06]} a6 {[%emt 0:08:19]} 16. Re2 {[%emt 0:02:06]} b5 {[%emt 0:03:05]} 17. Rae1 {[%emt 0:01:23]} Qb6 {[%emt 0:11:57]} 18. a3 {[%emt 0:04:16]} a5 {[%emt 0:03:57]} 19. Ne5 {[%emt 0:07:53]} b4 {[%emt 0:05:41]} 20. axb4 {[%emt 0:02:44]} axb4 {[%emt 0:00:09]} 21. Ng6 {[%emt 0:06:47]} Nxd4 {[%emt 0:07:43]} 22. cxd4 {[%emt 0:01:44]} fxg6 {[%emt 0:00:11]} 23. Qxg6 {[%emt 0:06:49]} Bf7 {[%emt 0:00:15]} 24. Qf5 {[%emt 0:00:57]} Qxd4 {[%emt 0:03:44]} 25. Be5 {[%emt 0:06:02]} Qb6 {[%emt 0:03:07]} 26. Qf4 {[%emt 0:01:41]} Nh5 {[%emt 0:02:15]} 27. Nxh5 {[%emt 0:01:49]} Bxh5 {[%emt 0:00:04]} 28. Re3 {[%emt 0:00:16]} g5 {[%emt 0:08:56]} 29. Qf5 {[%emt 0:01:28]} Qg6 {[%emt 0:02:34]} 30. Qxg6+ {[%emt 0:00:46]} Bxg6 {[%emt 0:00:03]} 31. Bd4 {[%emt 0:00:49]} Rxe3 {[%emt 0:00:35]} 32. fxe3 {[%emt 0:00:45]} Bg7 {[%emt 0:01:17]} 33. Be2 {[%emt 0:00:59]} Bxd4 {[%emt 0:00:30]} 34. exd4 {[%emt 0:00:13]} c3 {[%emt 0:00:54]} 35. bxc3 {[%emt 0:00:20]} b3 {[%emt 0:00:38]} 36. Bf3 {[%emt 0:00:15]} b2 {[%emt 0:00:17]} 37. Bxd5+ {[%emt 0:00:22]} Kh8 {[%emt 0:01:24]} 38. Ba2 {[%emt 0:00:37]} Ra8 {[%emt 0:00:14]} 39. Bb1 {[%emt 0:00:39]} Bxb1 {[%emt 0:00:05]} 40. Rxb1 {[%emt 0:00:09]} Ra1 {[%emt 0:00:04]} 41. Rxa1 {[%emt 0:51:00]} bxa1=Q+ {[%emt 0:50:10]} 42. Kh2 {[%emt 0:00:28]} Qxc3 {[%emt 0:00:05]} 43. d5 {[%emt 0:00:57]} Qe5+ {[%emt 0:00:05]} 44. Kg1 {[%emt 0:00:49]} Qxd5 {[%emt 0:00:03]} 45. Kh2 {[%emt 0:00:19]} h5 {[%emt 0:00:16]} 46. Kg1 {[%emt 0:00:44]} g4 {[%emt 0:00:14]} 47. hxg4 {[%emt 0:00:09]} hxg4 {[%emt 0:00:04]} 48. g3 {[%emt 0:00:40]} Qa2 {[%emt 0:00:08]} 49. Kh1 {[%emt 0:00:08]} Kg7 {[%emt 0:00:03]} 50. Kg1 {[%emt 0:00:13]} Kf6 {[%emt 0:00:02]} 51. Kf1 {[%emt 0:00:37]} Ke5 {[%emt 0:00:04]} 52. Kg1 {[%emt 0:00:12]} Ke4 {[%emt 0:00:03]} 53. Kh1 {[%emt 0:00:11]} Kf3 {[%emt 0:00:03]} 54. Kg1 {[%emt 0:00:14]} Qg2# {[%emt 0:00:09]} 0-1

[Event "4NCL 2nd Div 2023-24"]
[Site "Daventry"]
[Date "2024.05.04"]
[Round "9.6"]
[White "Freeland, Alex"]
[Black "Starley, Robert"]
[Result "1-0"]
[ECO "E41"]
[WhiteElo "2041"]
[BlackElo "2024"]
[Annotator "NA"]
[PlyCount "113"]
[EventDate "2023.11.11"]
[EventType "team-tourn"]
[EventCountry "ENG"]
[SourceTitle "playchess.com"]
[Source "ChessBase"]
[SourceQuality "1"]
[TimeControl "40/6000+30:3000+30"]

1. d4 {[%emt 0:00:02]} Nf6 {[%emt 0:00:06]} 2. c4 {[%emt 0:00:04]} e6 {[%emt 0:00:03]} 3. Nc3 {[%emt 0:00:03]} Bb4 {[%emt 0:00:05]} 4. e3 {[%emt 0:00:05]} c5 {[%emt 0:00:07]} 5. Bd3 {[%emt 0:01:56]} Nc6 {[%emt 0:00:18]} 6. Nf3 {[%emt 0:01:30]} d6 {[%emt 0:00:19]} 7. Bd2 {[%emt 0:01:57]} e5 {[%emt 0:00:56]} 8. d5 {[%emt 0:02:39]} Ne7 {[%emt 0:00:11]} 9. a3 {[%emt 0:07:22]} Bxc3 {[%emt 0:00:23]} 10. Bxc3 {[%emt 0:00:06]} O-O {[%emt 0:00:57]} 11. Qc2 {[%emt 0:02:10]} Re8 {[%emt 0:01:56]} 12. Nd2 {[%emt 0:04:15]} Bd7 {[%emt 0:01:14]} 13. O-O {[%emt 0:03:36]} Ng6 {[%emt 0:01:11]} 14. b4 {[%emt 0:08:48]} b6 {[%emt 0:01:12]} 15. b5 {[%emt 0:08:26]} a5 {[%emt 0:03:21]} 16. Rae1 {[%emt 0:05:58]} Qe7 {[%emt 0:03:34]} 17. Ne4 {[%emt 0:04:51]} Nxe4 {[%emt 0:01:23]} 18. Bxe4 {[%emt 0:00:05]} Qg5 {[%emt 0:01:22]} 19. f4 {[%emt 0:05:20]} exf4 {[%emt 0:01:22]} 20. exf4 {[%emt 0:00:32]} Nxf4 {[%emt 0:01:38]} 21. Bd2 {[%emt 0:03:32]} Rxe4 {[%emt 0:03:31]} 22. Qxe4 {[%emt 0:00:40]} Nh3+ {[%emt 0:00:25]} 23. Kh1 {[%emt 0:00:08]} Qxd2 {[%emt 0:00:32]} 24. gxh3 {[%emt 0:02:12]} f6 {[%emt 0:01:32]} 25. Qf4 {[%emt 0:15:37]} Qxf4 {[%emt 0:11:12]} 26. Rxf4 {[%emt 0:00:12]} Rf8 {[%emt 0:00:41]} 27. h4 {[%emt 0:31:54]} h5 {[%emt 0:02:19]} 28. Rfe4 {[%emt 0:00:00]} Rf7 {[%emt 0:01:23]} 29. Kg2 {[%emt 0:00:00]} g6 {[%emt 0:01:55]} 30. Kg3 {[%emt 0:00:00]} Kf8 {[%emt 0:01:15]} 31. Kf4 {[%emt 0:00:00]} Rg7 {[%emt 0:03:22]} 32. R4e3 {[%emt 0:00:00]} Rf7 {[%emt 0:01:34]} 33. R1e2 {[%emt 0:00:00]} Rg7 {[%emt 0:00:20]} 34. Re6 {[%emt 0:00:00]} g5+ {[%emt 0:02:38]} 35. Kg3 {[%emt 0:00:00]} gxh4+ {[%emt 0:03:03]} 36. Kxh4 {[%emt 0:00:00]} Bxe6 {[%emt 0:02:39]} 37. Rxe6 {[%emt 0:00:00]} Rd7 {[%emt 0:06:56]} 38. Rxf6+ {[%emt 0:00:00]} Kg7 {[%emt 0:00:45]} 39. Re6 {[%emt 0:00:00]} Rd8 {[%emt 0:00:37]} 40. Kg5 {[%emt 0:00:00]} Kf7 {[%emt 0:01:11]} 41. Kxh5 {[%emt 0:49:45]} Kg7 {[%emt 0:51:39]} 42. Kg5 {[%emt 0:00:36]} Kf7 {[%emt 0:00:44]} 43. h4 {[%emt 0:00:37]} Rg8+ {[%emt 0:00:22]} 44. Kf5 {[%emt 0:00:30]} Rg3 {[%emt 0:00:52]} 45. Rxd6 {[%emt 0:01:53]} Rf3+ {[%emt 0:00:17]} 46. Ke4 {[%emt 0:00:52]} Rxa3 {[%emt 0:00:55]} 47. Rxb6 {[%emt 0:01:03]} Rc3 {[%emt 0:00:34]} 48. Ke5 {[%emt 0:02:20]} Rxc4 {[%emt 0:00:45]} 49. Rb7+ {[%emt 0:02:20]} Ke8 {[%emt 0:03:00]} 50. Ke6 {[%emt 0:00:00]} Kd8 {[%emt 0:00:00]} 51. Kd6 {[%emt 0:00:00]} Kc8 {[%emt 0:00:00]} 52. Rh7 {[%emt 0:00:00]} a4 {[%emt 0:00:00]} 53. Kc6 {[%emt 0:00:00]} Kd8 {[%emt 0:00:00]} 54. d6 {[%emt 0:00:00]} Re4 {[%emt 0:00:00]} 55. Rh8+ {[%emt 0:00:00]} Re8 {[%emt 0:00:00]} 56. Rxe8+ {[%emt 0:00:00]} Kxe8 {[%emt 0:00:00]} 57. Kc7 {[%emt 0:00:00]} 1-0

[Event "4NCL 2nd Div 2023-24"]
[Site "Daventry"]
[Date "2024.05.04"]
[Round "9.7"]
[White "Alldritt, Nigel R E"]
[Black "Taylor, William J"]
[Result "1/2-1/2"]
[ECO "E04"]
[WhiteElo "1983"]
[BlackElo "1972"]
[Annotator "NA RC"]
[PlyCount "46"]
[EventDate "2023.11.11"]
[EventType "team-tourn"]
[EventCountry "ENG"]
[SourceTitle "playchess.com"]
[Source "ChessBase"]
[SourceQuality "1"]
[TimeControl "40/6000+30:3000+30"]

1. d4 {[%emt 0:00:03]} d5 {[%emt 0:00:11]} 2. c4 {[%emt 0:00:06]} e6 {[%emt 0:00:06]} 3. Nf3 {[%emt 0:00:06]} Nf6 {[%emt 0:00:11]} 4. g3 {[%emt 0:00:07]} dxc4 {[%emt 0:00:24]} 5. Bg2 {[%emt 0:01:02]} c5 {[%emt 0:00:09]} 6. O-O {[%emt 0:02:17]} Nc6 {[%emt 0:00:08]} 7. Qa4 {[%emt 0:00:48]} Bd7 {[%emt 0:00:24]} 8. Qxc4 {[%emt 0:03:26]} b5 {[%emt 0:00:38]} 9. Qd3 {[%emt 0:00:08]} c4 {[%emt 0:00:10]} 10. Qc2 {[%emt 0:00:05]} Rc8 {[%emt 0:00:20]} 11. e4 {[%emt 0:00:55]} Be7 {[%emt 0:00:15]} 12. Rd1 {[%emt 0:06:42]} O-O {[%emt 0:01:40]} 13. Qe2 {[%emt 0:00:29]} Na5 {[%emt 0:01:27]} 14. Bg5 {[%emt 0:14:31]} b4 {[%emt 0:14:55]} 15. Nbd2 {[%emt 0:05:24]} c3 {[%emt 0:04:51]} 16. bxc3 {[%emt 0:06:14]} bxc3 {[%emt 0:00:17]} 17. Nf1 {[%emt 0:04:48]} Ba4 {[%emt 0:12:34]} 18. Rdc1 {[%emt 0:01:51]} Ba3 {[%emt 0:19:59]} 19. e5 {[%emt 0:34:46]} Bxc1 {[%emt 0:02:12]} 20. Rxc1 {[%emt 0:02:23]} h6 {[%emt 0:02:41]} 21. Bh4 {[%emt 0:24:49]} g5 {[%emt 0:24:44]} 22. Nxg5 {[%emt 0:00:00]} Qxd4 {[%emt 0:00:09]} 23. exf6 {[%emt 0:00:00]} hxg5 {[%emt 0:01:03]} 1/2-1/2

[Event "4NCL 2nd Div 2023-24"]
[Site "Daventry"]
[Date "2024.05.04"]
[Round "9.8"]
[White "Smith, Lynda"]
[Black "Goh, Jinghan Cameron"]
[Result "0-1"]
[ECO "B24"]
[WhiteElo "1860"]
[BlackElo "1971"]
[Annotator "NA RC"]
[PlyCount "58"]
[EventDate "2023.11.11"]
[EventType "team-tourn"]
[EventCountry "ENG"]
[SourceTitle "playchess.com"]
[Source "ChessBase"]
[SourceQuality "1"]
[TimeControl "40/6000+30:3000+30"]

1. e4 {[%emt 0:00:10]} c5 {[%emt 0:00:00]} 2. Nc3 {[%emt 0:00:04]} e6 {[%emt 0:00:04]} 3. g3 {[%emt 0:00:06]} d5 {[%emt 0:00:24]} 4. Bg2 {[%emt 0:00:16]} d4 {[%emt 0:01:15]} 5. Nce2 {[%emt 0:01:42]} Nc6 {[%emt 0:00:14]} 6. d3 {[%emt 0:00:24]} g6 {[%emt 0:02:54]} 7. f4 {[%emt 0:01:19]} Bg7 {[%emt 0:03:13]} 8. Nf3 {[%emt 0:01:36]} Nge7 {[%emt 0:05:09]} 9. O-O {[%emt 0:02:25]} Bd7 {[%emt 0:02:06]} 10. Bd2 {[%emt 0:02:53]} b5 {[%emt 0:06:29]} 11. g4 {[%emt 0:12:37]} h5 {[%emt 0:05:14]} 12. g5 {[%emt 0:06:09]} e5 {[%emt 0:03:05]} 13. fxe5 {[%emt 0:02:58]} Nxe5 {[%emt 0:00:32]} 14. Nxe5 {[%emt 0:01:31]} Bxe5 {[%emt 0:00:06]} 15. Bf4 {[%emt 0:06:54]} Nc6 {[%emt 0:01:48]} 16. Qd2 {[%emt 0:05:00]} h4 {[%emt 0:10:37]} 17. Bf3 {[%emt 0:08:14]} Qe7 {[%emt 0:03:35]} 18. Kh1 {[%emt 0:03:39]} Bxf4 {[%emt 0:03:24]} 19. Qxf4 {[%emt 0:02:10]} Ne5 {[%emt 0:02:30]} 20. Rg1 {[%emt 0:06:00]} a5 {[%emt 0:11:57]} 21. Rad1 {[%emt 0:07:17]} Ra6 {[%emt 0:09:19]} 22. c3 {[%emt 0:06:25]} Rd6 {[%emt 0:08:08]} 23. Nc1 {[%emt 0:07:23]} Bc6 {[%emt 0:09:30]} 24. h3 {[%emt 0:09:43]} dxc3 {[%emt 0:02:52]} 25. bxc3 {[%emt 0:00:27]} Nxf3 {[%emt 0:00:19]} 26. Qxf3 {[%emt 0:00:58]} Rxd3 {[%emt 0:00:13]} 27. Qxd3 {[%emt 0:03:37]} Bxe4+ {[%emt 0:00:09]} 28. Qxe4 {[%emt 0:01:14]} Qxe4+ {[%emt 0:00:06]} 29. Kh2 {[%emt 0:00:11]} Qf4+ {[%emt 0:01:50]} 0-1

[Event "4NCL 2nd Div 2023-24"]
[Site "Daventry"]
[Date "2024.05.04"]
[Round "9.9"]
[White "Taylor, Adam A"]
[Black "Moreby, James"]
[Result "1-0"]
[ECO "A09"]
[WhiteElo "2272"]
[BlackElo "2246"]
[Annotator "RC"]
[PlyCount "73"]
[EventDate "2023.11.11"]
[EventType "team-tourn"]
[EventCountry "ENG"]
[SourceTitle "playchess.com"]
[Source "ChessBase"]
[SourceQuality "1"]
[TimeControl "40/6000+30:3000+30"]

1. Nf3 {[%emt 0:00:57]} d5 {[%emt 0:00:28]} 2. c4 {[%emt 0:00:36]} d4 {[%emt 0:00:40]} 3. g3 {[%emt 0:03:26]} c5 {[%emt 0:05:10]} 4. Bg2 {[%emt 0:01:34]} Nc6 {[%emt 0:00:44]} 5. O-O {[%emt 0:02:43]} e5 {[%emt 0:05:26]} 6. e3 {[%emt 0:04:33]} e4 {[%emt 0:03:39]} 7. Ne1 {[%emt 0:00:18]} Nf6 {[%emt 0:03:21]} 8. d3 {[%emt 0:05:05]} Bg4 {[%emt 0:12:24]} 9. Qc2 {[%emt 0:29:30]} Nb4 {[%emt 0:27:02]} 10. Qd2 {[%emt 0:17:21]} Be6 {[%emt 0:03:12]} 11. b3 {[%emt 0:11:55]} Ng4 {[%emt 0:22:22]} 12. Bxe4 {[%emt 0:05:30]} dxe3 {[%emt 0:00:45]} 13. fxe3 {[%emt 0:00:05]} Qd7 {[%emt 0:02:58]} 14. d4 {[%emt 0:06:47]} f5 {[%emt 0:00:31]} 15. Bf3 {[%emt 0:01:09]} h5 {[%emt 0:02:36]} 16. d5 {[%emt 0:00:53]} Bf7 {[%emt 0:00:22]} 17. a3 {[%emt 0:01:26]} Na6 {[%emt 0:00:01]} 18. Nd3 {[%emt 0:00:05]} Bd6 {[%emt 0:01:08]} 19. Bb2 {[%emt 0:01:03]} Qe7 {[%emt 0:02:57]} 20. Bxg4 {[%emt 0:08:01]} hxg4 {[%emt 0:00:02]} 21. Nc3 {[%emt 0:01:03]} O-O-O {[%emt 0:00:48]} 22. Rae1 {[%emt 0:00:30]} Rh3 {[%emt 0:01:23]} 23. Nf4 {[%emt 0:00:24]} Rh6 {[%emt 0:00:13]} 24. e4 {[%emt 0:00:29]} g5 {[%emt 0:01:01]} 25. exf5 {[%emt 0:00:44]} Qd7 {[%emt 0:00:22]} 26. Ne6 {[%emt 0:01:07]} Bxg3 {[%emt 0:01:33]} 27. hxg3 {[%emt 0:00:56]} Rdh8 {[%emt 0:00:16]} 28. Qg2 {[%emt 0:03:13]} Bxe6 {[%emt 0:00:09]} 29. Rxe6 {[%emt 0:00:24]} Rh3 {[%emt 0:00:01]} 30. Ne4 {[%emt 0:00:27]} R8h7 {[%emt 0:02:47]} 31. Re8+ {[%emt 0:00:34]} Kc7 {[%emt 0:00:25]} 32. Be5+ {[%emt 0:00:02]} Kb6 {[%emt 0:00:08]} 33. Re6+ {[%emt 0:00:03]} Ka5 {[%emt 0:00:30]} 34. Bc3+ {[%emt 0:00:06]} Nb4 {[%emt 0:00:13]} 35. axb4+ {[%emt 0:00:04]} cxb4 {[%emt 0:00:11]} 36. Ra1+ {[%emt 0:00:06]} Qa4 {[%emt 0:00:19]} 37. Rxa4# {[%emt 0:00:05]} 1-0

[Event "4NCL 2nd Div 2023-24"]
[Site "Daventry"]
[Date "2024.05.04"]
[Round "9.10"]
[White "Rendle, Thomas E"]
[Black "Handley, Michael R"]
[Result "1-0"]
[ECO "C02"]
[WhiteElo "2380"]
[BlackElo "2004"]
[Annotator "TA"]
[PlyCount "43"]
[EventDate "2023.11.11"]
[EventType "team-tourn"]
[EventCountry "ENG"]
[SourceTitle "playchess.com"]
[Source "ChessBase"]
[SourceQuality "1"]
[TimeControl "40/6000+30:3000+30"]

{[%evp 11,43,0,0,-11,-22,-33,-20,-18,-12,-9,-22,-23,0,-7,0,0,0,-14,123,78,174,163,486,475,767,745,783,815,801,558,570,581,545,569]} 1. e4 {[%emt 0:00:04]} e6 {[%emt 0:00:06]} 2. d4 {[%emt 0:00:05]} d5 {[%emt 0:00:03]} 3. e5 {[%emt 0:00:06]} c5 {[%emt 0:00:03]} 4. c3 {[%emt 0:00:04]} Nc6 {[%emt 0:00:02]} 5. Nf3 {[%emt 0:00:10]} Qb6 {[%emt 0:00:04]} 6. Bd3 {[%emt 0:00:13]} cxd4 {[%emt 0:00:07]} 7. O-O {[%emt 0:00:05]} Bd7 {[%emt 0:00:06]} 8. Re1 {[%emt 0:00:20]} Rc8 {[%emt 0:00:42]} 9. Nbd2 {[%emt 0:00:58] The position is equal.} dxc3 {[%emt 0:00:21]} 10. bxc3 {[%emt 0:01:22]} Na5 {[%emt 0:00:58]} 11. Rb1 {[%emt 0:03:12]} Qd8 {[%emt 0:02:06]} 12. c4 {[%emt 0:09:37]} dxc4 {[%emt 0:04:17]} 13. Bc2 {[%emt 0:03:21]} Bc6 {[%emt 0:24:51]} 14. Qe2 {[%emt 0:01:32]} Nh6 {[%emt 0:02:55]} (14... Ne7 $11) 15. Ne4 {[%emt 0:01:21] [#] Black must now prevent Bxh6.} Bxe4 {[%emt 0:08:00]} (15... Nf5 $16 {keeps fighting.}) 16. Qxe4 $18 {[%emt 0:01:12]} Be7 $2 {[%emt 0:01:58]} (16... Qc7) 17. Ba4+ {[%emt 0:04:47] White is clearly winning.} Kf8 {[%emt 0:00:34]} (17... b5 $142) 18. Rd1 {[%emt 0:01:18]} Qc7 {[%emt 0:00:06]} 19. Rd7 {[%emt 0:02:21]} Qc5 {[%emt 0:00:14]} 20. Rb5 {[%emt 0:03:44]} ({Not} 20. Be3 Qa3 21. Qc2 a6 $18) 20... Qc6 {[%emt 0:00:07]} 21. Qxc6 {[%emt 0:00:24]} Nxc6 {[%emt 0:00:07]} 22. Rbxb7 {[%emt 0:00:19] Weighted Error Value: White=0.35/Black=0.58.  Mistake:       	---       	Black=4      Inaccurate:     	White=1     	---        OK:         	White=5     	Black=2      Best:        	White=3     	---} 1-0